[Event "RUS-ch Blitz Women 2018"]
[Site "Sochi"]
[Date "2018.10.07"]
[Round "13"]
[White "Maletina, Tatiana"]
[Black "Nebolsina, Vera"]
[Result "0-1"]
[ECO "D70"]
[WhiteElo "2270"]
[BlackElo "2220"]
[Annotator "NA"]
[PlyCount "128"]
[EventDate "2018.10.07"]
[EventType "swiss"]
[EventCountry "RUS"]
[SourceTitle "playchess.com"]
[Source "ChessBase"]
[SourceQuality "1"]
[TimeControl "180+2"]

1. d4 {[%emt 0:00:00]} Nf6 {[%emt 0:00:00]} 2. c4 {[%emt 0:00:00]} g6 {[%emt 0:00:01]} 3. f3 {[%emt 0:00:02]} d5 {[%emt 0:00:04]} 4. cxd5 {[%emt 0:00:01]} Nxd5 {[%emt 0:00:01]} 5. e4 {[%emt 0:00:01]} Nb6 {[%emt 0:00:02]} 6. Nc3 {[%emt 0:00:01]} Bg7 {[%emt 0:00:05]} 7. Be3 {[%emt 0:00:01]} Nc6 {[%emt 0:00:23]} 8. Bb5 {[%emt 0:00:02]} O-O {[%emt 0:00:04]} 9. Nge2 {[%emt 0:00:01]} Na5 {[%emt 0:00:11]} 10. b3 {[%emt 0:00:15]} a6 {[%emt 0:00:12]} 11. Bd3 {[%emt 0:00:05]} Nc6 {[%emt 0:00:09]} 12. Bc2 {[%emt 0:00:09]} Qd6 {[%emt 0:00:26]} 13. O-O {[%emt 0:00:04]} Rd8 {[%emt 0:00:02]} 14. d5 {[%emt 0:00:34]} Nb4 {[%emt 0:00:04]} 15. Bd4 {[%emt 0:00:29]} Nxc2 {[%emt 0:00:08]} 16. Qxc2 {[%emt 0:00:02]} Bxd4+ {[%emt 0:00:19]} 17. Nxd4 {[%emt 0:00:01]} Qc5 {[%emt 0:00:01]} 18. Nce2 {[%emt 0:00:01]} Qxc2 {[%emt 0:00:03]} 19. Nxc2 {[%emt 0:00:01]} e6 {[%emt 0:00:04]} 20. dxe6 {[%emt 0:00:14]} Bxe6 {[%emt 0:00:01]} 21. Rfd1 {[%emt 0:00:02]} Kf8 {[%emt 0:00:08]} 22. Ne3 {[%emt 0:00:02]} Ke7 {[%emt 0:00:07]} 23. Kf2 {[%emt 0:00:02]} a5 {[%emt 0:00:08]} 24. Nd4 {[%emt 0:00:04]} a4 {[%emt 0:00:07]} 25. Nxe6 {[%emt 0:00:09]} fxe6 {[%emt 0:00:03]} 26. b4 {[%emt 0:00:06]} a3 {[%emt 0:00:08]} 27. Ke2 {[%emt 0:00:03]} Na4 {[%emt 0:00:15]} 28. Rxd8 {[%emt 0:00:05]} Rxd8 {[%emt 0:00:01]} 29. Rc1 {[%emt 0:00:01]} c6 {[%emt 0:00:02]} 30. Nc4 {[%emt 0:00:03]} Rd4 {[%emt 0:00:07]} 31. Ke3 {[%emt 0:00:13]} e5 {[%emt 0:00:01]} 32. Nxa3 {[%emt 0:00:05]} Rxb4 {[%emt 0:00:01]} 33. Nc4 {[%emt 0:00:01]} Ke6 {[%emt 0:00:04]} 34. Rc2 {[%emt 0:00:02]} c5 {[%emt 0:00:09]} 35. Nd2 {[%emt 0:00:19]} b5 {[%emt 0:00:11]} 36. a3 {[%emt 0:00:10]} Rb2 {[%emt 0:00:03]} 37. Rxb2 {[%emt 0:00:09]} Nxb2 {[%emt 0:00:01]} 38. Nb1 {[%emt 0:00:10]} b4 {[%emt 0:00:06]} 39. axb4 {[%emt 0:00:04]} cxb4 {[%emt 0:00:01]} 40. Nd2 {[%emt 0:00:03]} Kd6 {[%emt 0:00:02]} 41. Nb3 {[%emt 0:00:01]} Kc6 {[%emt 0:00:05]} 42. Kd2 {[%emt 0:00:01]} Kb5 {[%emt 0:00:03]} 43. Kc2 {[%emt 0:00:02]} Nc4 {[%emt 0:00:01]} 44. g3 {[%emt 0:00:05]} Ne3+ {[%emt 0:00:02]} 45. Kd3 {[%emt 0:00:03]} Nf1 {[%emt 0:00:01]} 46. f4 {[%emt 0:00:02]} Nxh2 {[%emt 0:00:05]} 47. f5 {[%emt 0:00:09]} Ng4 {[%emt 0:00:04]} 48. Kc2 {[%emt 0:00:05]} Nf6 {[%emt 0:00:02]} 49. Kd3 {[%emt 0:00:01]} g5 {[%emt 0:00:06]} 50. Nd2 {[%emt 0:00:03]} g4 {[%emt 0:00:01]} 51. Nb3 {[%emt 0:00:02]} h5 {[%emt 0:00:01]} 52. Nd2 {[%emt 0:00:02]} h4 {[%emt 0:00:02]} 53. gxh4 {[%emt 0:00:01]} g3 {[%emt 0:00:01]} 54. Nf3 {[%emt 0:00:03]} g2 {[%emt 0:00:02]} 55. Ke2 {[%emt 0:00:05]} b3 {[%emt 0:00:01]} 56. Kf2 {[%emt 0:00:01]} b2 {[%emt 0:00:01]} 57. Nd2 {[%emt 0:00:01]} Nxe4+ 58. Kxg2 {[%emt 0:00:00]} Nxd2 {[%emt 0:00:02]} 59. f6 {[%emt 0:00:01]} b1=Q {[%emt 0:00:02]} 60. f7 {[%emt 0:00:01]} Qg6+ {[%emt 0:00:01]} 61. Kf2 {[%emt 0:00:00]} Qxf7+ {[%emt 0:00:01]} 62. Ke3 {[%emt 0:00:01]} Qf4+ {[%emt 0:00:01]} 63. Kd3 {[%emt 0:00:01]} Qxh4 {[%emt 0:00:01]} 64. Kxd2 {[%emt 0:00:02]} Qg3 {[%emt 0:00:01]} 0-1

[Event "RUS-ch Blitz Women 2018"]
[Site "Sochi"]
[Date "2018.10.07"]
[Round "14"]
[White "Dordzhieva, Dinara"]
[Black "Voit, Daria"]
[Result "1-0"]
[ECO "A05"]
[WhiteElo "2340"]
[BlackElo "2352"]
[Annotator "ChessBase"]
[PlyCount "115"]
[EventDate "2018.10.07"]
[EventType "swiss"]
[EventCountry "RUS"]
[SourceTitle "playchess.com"]
[Source "ChessBase"]
[SourceQuality "1"]
[TimeControl "180+2"]

1. Nf3 {[%emt 0:00:00]} Nf6 {[%emt 0:00:00]} 2. c4 {[%emt 0:00:00]} c5 {[%emt 0:00:00]} 3. g3 {[%emt 0:00:01]} b6 {[%emt 0:00:02]} 4. Bg2 {[%emt 0:00:02]} Bb7 {[%emt 0:00:01]} 5. b3 {[%emt 0:00:01]} e6 {[%emt 0:00:02]} 6. Bb2 {[%emt 0:00:01]} Be7 {[%emt 0:00:07]} 7. O-O {[%emt 0:00:02]} O-O {[%emt 0:00:06]} 8. e3 {[%emt 0:00:00]} d5 {[%emt 0:00:02]} 9. Nc3 {[%emt 0:00:06]} dxc4 {[%emt 0:00:11]} 10. bxc4 {[%emt 0:00:02]} Nc6 {[%emt 0:00:14]} 11. Qe2 {[%emt 0:00:18]} Nb4 {[%emt 0:00:06]} 12. Ne1 {[%emt 0:00:04]} Bxg2 {[%emt 0:00:02]} 13. Kxg2 {[%emt 0:00:01]} Qc7 {[%emt 0:00:02]} 14. d3 {[%emt 0:00:03]} Rfd8 {[%emt 0:00:03]} 15. a3 {[%emt 0:00:03]} Nc6 {[%emt 0:00:01]} 16. f4 {[%emt 0:00:01]} Rd7 {[%emt 0:00:08]} 17. Rd1 {[%emt 0:00:09]} Rad8 18. g4 Qb7 {[%emt 0:00:14]} 19. Kg1 {[%emt 0:00:02]} a6 {[%emt 0:00:01]} 20. a4 {[%emt 0:00:01]} Nb4 {[%emt 0:00:03]} 21. g5 {[%emt 0:00:03]} Ne8 {[%emt 0:00:03]} 22. h4 {[%emt 0:00:24]} Nc7 {[%emt 0:00:06]} 23. h5 {[%emt 0:00:09]} b5 {[%emt 0:00:01]} 24. axb5 {[%emt 0:00:20]} axb5 25. h6 bxc4 {[%emt 0:00:10]} 26. dxc4 {[%emt 0:00:04]} Rxd1 {[%emt 0:00:40]} 27. Nxd1 {[%emt 0:00:00]} gxh6 {[%emt 0:00:04]} 28. gxh6 {[%emt 0:00:01]} Qe4 {[%emt 0:00:02]} 29. Rf2 {[%emt 0:00:14]} Kf8 {[%emt 0:00:40]} 30. Nc3 {[%emt 0:00:02]} Qg6+ {[%emt 0:00:04]} 31. Rg2 {[%emt 0:00:01]} Qf5 {[%emt 0:00:10]} 32. Nb5 {[%emt 0:00:17]} Nxb5 {[%emt 0:00:07]} 33. cxb5 {[%emt 0:00:00]} Qb1 {[%emt 0:00:06]} 34. Bg7+ {[%emt 0:00:03]} Ke8 {[%emt 0:00:01]} 35. Bc3 {[%emt 0:00:07]} Nd3 {[%emt 0:00:02]} 36. Rg8+ {[%emt 0:00:33]} Bf8 {[%emt 0:00:01]} 37. Qc2 {[%emt 0:00:01]} Qxc2 {[%emt 0:00:20]} 38. Nxc2 {[%emt 0:00:00]} Kd7 {[%emt 0:00:07]} 39. Na3 {[%emt 0:00:12]} Bxh6 {[%emt 0:00:02]} 40. Rg2 {[%emt 0:00:11]} Kc8 {[%emt 0:00:05]} 41. Nc4 {[%emt 0:00:04]} Nb4 {[%emt 0:00:02]} 42. Be5 {[%emt 0:00:05]} Rd1+ {[%emt 0:00:02]} 43. Kh2 {[%emt 0:00:01]} Nd5 {[%emt 0:00:02]} 44. Nd6+ {[%emt 0:00:04]} Kd7 45. Ra2 {[%emt 0:00:07]} Rb1 {[%emt 0:00:04]} 46. Ra7+ {[%emt 0:00:01]} Nc7 {[%emt 0:00:02]} 47. Nxf7 {[%emt 0:00:06]} Bf8 {[%emt 0:00:01]} 48. Rxc7+ {[%emt 0:00:01]} Ke8 {[%emt 0:00:01]} 49. Ng5 Rxb5 50. Nxe6 {[%emt 0:00:11]} h5 {[%emt 0:00:06]} 51. Rc8+ {[%emt 0:00:01]} Kd7 {[%emt 0:00:01]} 52. Rxf8 {[%emt 0:00:09]} Kxe6 {[%emt 0:00:01]} 53. Rh8 {[%emt 0:00:01]} Kf5 {[%emt 0:00:01]} 54. Rxh5+ {[%emt 0:00:02]} Ke4 {[%emt 0:00:00]} 55. Bd4 {[%emt 0:00:09]} Ra5 {[%emt 0:00:02]} 56. Rxc5 {[%emt 0:00:01]} Ra2+ {[%emt 0:00:02]} 57. Kg3 {[%emt 0:00:01]} Ra3 {[%emt 0:00:01]} 58. Re5+ {[%emt 0:00:00] Kd5} 1-0

[Event "RUS-ch Blitz Women 2018"]
[Site "Sochi"]
[Date "2018.10.07"]
[Round "14"]
[White "Tomilova, Elena"]
[Black "Charochkina, Daria"]
[Result "0-1"]
[ECO "D02"]
[WhiteElo "2328"]
[BlackElo "2344"]
[Annotator "NA"]
[PlyCount "128"]
[EventDate "2018.10.07"]
[EventType "swiss"]
[EventCountry "RUS"]
[SourceTitle "playchess.com"]
[Source "ChessBase"]
[SourceQuality "1"]
[TimeControl "180+2"]

1. d4 {[%emt 0:00:00]} d5 {[%emt 0:00:00]} 2. Nf3 {[%emt 0:00:01]} Nf6 {[%emt 0:00:09]} 3. Bf4 {[%emt 0:00:02]} c5 {[%emt 0:00:03]} 4. e3 {[%emt 0:00:03]} Nc6 {[%emt 0:00:06]} 5. c3 {[%emt 0:00:02]} e6 {[%emt 0:00:07]} 6. Nbd2 {[%emt 0:00:03]} Bd6 {[%emt 0:00:01]} 7. Bg3 {[%emt 0:00:01]} O-O {[%emt 0:00:02]} 8. Bd3 {[%emt 0:00:02]} b6 {[%emt 0:00:06]} 9. O-O {[%emt 0:00:03]} Bb7 {[%emt 0:00:00]} 10. Qe2 {[%emt 0:00:01]} Qc7 {[%emt 0:00:14]} 11. dxc5 {[%emt 0:00:16]} bxc5 {[%emt 0:00:02]} 12. e4 {[%emt 0:00:04]} Bxg3 {[%emt 0:00:14]} 13. hxg3 {[%emt 0:00:02]} h6 {[%emt 0:00:18]} 14. Rad1 {[%emt 0:00:16]} Rad8 {[%emt 0:00:03]} 15. e5 {[%emt 0:00:15]} Ng4 {[%emt 0:00:38]} 16. Rfe1 {[%emt 0:00:05]} Rde8 {[%emt 0:00:00]} 17. c4 {[%emt 0:00:18]} f5 {[%emt 0:00:09]} 18. exf6 {[%emt 0:00:08]} Nxf6 {[%emt 0:00:06]} 19. Bb1 {[%emt 0:00:14]} d4 {[%emt 0:00:09]} 20. Ne4 Nd7 {[%emt 0:00:29]} 21. b3 {[%emt 0:00:21]} Rf7 {[%emt 0:00:04]} 22. Qc2 {[%emt 0:00:10]} Nb4 {[%emt 0:00:02]} 23. Qe2 {[%emt 0:00:06]} Nf6 {[%emt 0:00:03]} 24. Nxf6+ {[%emt 0:00:05]} Rxf6 {[%emt 0:00:01]} 25. a3 {[%emt 0:00:03]} Nc6 {[%emt 0:00:09]} 26. Qd3 {[%emt 0:00:22]} g5 {[%emt 0:00:01]} 27. b4 {[%emt 0:00:01]} e5 {[%emt 0:00:06]} 28. b5 {[%emt 0:00:21]} Nd8 {[%emt 0:00:01]} 29. Nd2 {[%emt 0:00:04]} Qf7 {[%emt 0:00:05]} 30. f3 {[%emt 0:00:02]} Re7 {[%emt 0:00:05]} 31. Re2 {[%emt 0:00:02]} Qg7 {[%emt 0:00:08]} 32. g4 {[%emt 0:00:05]} Rf4 {[%emt 0:00:02]} 33. Rde1 {[%emt 0:00:03]} Nf7 {[%emt 0:00:00]} 34. a4 {[%emt 0:00:12]} Nd6 {[%emt 0:00:01]} 35. a5 {[%emt 0:00:01]} e4 {[%emt 0:00:08]} 36. fxe4 {[%emt 0:00:09]} Rxg4 {[%emt 0:00:01]} 37. e5 {[%emt 0:00:05]} Nf7 {[%emt 0:00:07]} 38. Nf3 {[%emt 0:00:03]} Rg3 {[%emt 0:00:03]} 39. Qf5 {[%emt 0:00:02]} Bxf3 {[%emt 0:00:05]} 40. Qc8+ {[%emt 0:00:02]} Qf8 {[%emt 0:00:00]} 41. Bh7+ {[%emt 0:00:02]} Kg7 {[%emt 0:00:01]} 42. Qxf8+ {[%emt 0:00:03]} Kxf8 {[%emt 0:00:01]} 43. Kf2 {[%emt 0:00:01]} Bxe2 {[%emt 0:00:01]} 44. Kxg3 {[%emt 0:00:01]} d3 {[%emt 0:00:01]} 45. e6 {[%emt 0:00:02]} Rxe6 {[%emt 0:00:01]} 46. Bxd3 {[%emt 0:00:01]} Re3+ {[%emt 0:00:01]} 47. Kf2 {[%emt 0:00:01]} Rxd3 {[%emt 0:00:01]} 48. Rxe2 {[%emt 0:00:01]} Nd6 {[%emt 0:00:01]} 49. Re6 {[%emt 0:00:02]} Nxc4 {[%emt 0:00:02]} 50. Ra6 {[%emt 0:00:01]} Ra3 {[%emt 0:00:06]} 51. Rxa7 {[%emt 0:00:03]} Rxa5 {[%emt 0:00:00]} 52. Rh7 {[%emt 0:00:02]} Rxb5 {[%emt 0:00:03]} 53. Rxh6 {[%emt 0:00:01]} Kg7 {[%emt 0:00:00]} 54. Rc6 {[%emt 0:00:01]} Ne5 {[%emt 0:00:02]} 55. Rc7+ {[%emt 0:00:01]} Kf6 {[%emt 0:00:01]} 56. Ke3 {[%emt 0:00:01]} c4 {[%emt 0:00:04]} 57. Kd4 {[%emt 0:00:01]} Ra5 {[%emt 0:00:01]} 58. g3 {[%emt 0:00:02]} g4 {[%emt 0:00:06]} 59. Rb7 {[%emt 0:00:01]} Ke6 {[%emt 0:00:03]} 60. Rb6+ {[%emt 0:00:01]} Kf5 {[%emt 0:00:00]} 61. Rb7 {[%emt 0:00:01]} Ra1 {[%emt 0:00:04]} 62. Re7 {[%emt 0:00:02]} Rd1+ {[%emt 0:00:01]} 63. Kc3 {[%emt 0:00:00]} Rd3+ {[%emt 0:00:01]} 64. Kc2 {[%emt 0:00:02]} Rxg3 {[%emt 0:00:01]} 0-1

[Event "RUS-ch Blitz Women 2018"]
[Site "Sochi"]
[Date "2018.10.07"]
[Round "14"]
[White "Guseva, Marina"]
[Black "Bodnaruk, Anastasia"]
[Result "1-0"]
[ECO "D70"]
[WhiteElo "2292"]
[BlackElo "2423"]
[Annotator "ChessBase"]
[PlyCount "165"]
[EventDate "2018.10.07"]
[EventType "swiss"]
[EventCountry "RUS"]
[SourceTitle "playchess.com"]
[Source "ChessBase"]
[SourceQuality "1"]
[TimeControl "180+2"]

1. d4 {[%emt 0:00:00]} Nf6 {[%emt 0:00:00]} 2. c4 {[%emt 0:00:00]} g6 {[%emt 0:00:00]} 3. Nf3 {[%emt 0:00:04]} Bg7 {[%emt 0:00:00]} 4. Nc3 {[%emt 0:00:02]} O-O {[%emt 0:00:01]} 5. Bf4 {[%emt 0:00:04]} d6 {[%emt 0:00:09]} 6. e3 {[%emt 0:00:01]} Nfd7 {[%emt 0:00:12]} 7. h3 {[%emt 0:00:04]} e5 {[%emt 0:00:01]} 8. dxe5 {[%emt 0:00:02]} dxe5 {[%emt 0:00:01]} 9. Bh2 {[%emt 0:00:02]} c6 {[%emt 0:00:16]} 10. Be2 {[%emt 0:00:02]} Qe7 {[%emt 0:00:01]} 11. O-O {[%emt 0:00:02]} Na6 {[%emt 0:00:07]} 12. a3 {[%emt 0:00:02]} Nac5 {[%emt 0:00:13]} 13. b4 {[%emt 0:00:04]} Ne6 {[%emt 0:00:01]} 14. Qc2 {[%emt 0:00:02]} f5 {[%emt 0:00:04]} 15. Rad1 {[%emt 0:00:06]} g5 {[%emt 0:00:21]} 16. c5 {[%emt 0:00:07]} Kh8 {[%emt 0:00:02]} 17. Rd6 {[%emt 0:00:05]} e4 {[%emt 0:00:09]} 18. Nd4 {[%emt 0:00:25]} Nxd4 {[%emt 0:00:30]} 19. exd4 {[%emt 0:00:01]} Nf6 {[%emt 0:00:00]} 20. d5 {[%emt 0:00:27]} f4 {[%emt 0:00:02]} 21. dxc6 {[%emt 0:00:05]} bxc6 {[%emt 0:00:01]} 22. Re1 {[%emt 0:00:05]} Bf5 {[%emt 0:00:11]} 23. Rxc6 {[%emt 0:00:18]} Rad8 {[%emt 0:00:09]} 24. Bc4 {[%emt 0:00:07]} Rd4 {[%emt 0:00:05]} 25. Nb5 {[%emt 0:00:07]} e3 {[%emt 0:00:35]} 26. Qxf5 {[%emt 0:00:04]} Rxc4 {[%emt 0:00:01]} 27. fxe3 {[%emt 0:00:08]} Re4 {[%emt 0:00:15]} 28. Rc7 {[%emt 0:00:08]} Qe6 {[%emt 0:00:19]} 29. Nd6 {[%emt 0:00:07]} Qxf5 {[%emt 0:00:05]} 30. Nxf5 {[%emt 0:00:02]} Nd5 {[%emt 0:00:01]} 31. Rxg7 {[%emt 0:00:04]} Rxf5 {[%emt 0:00:01]} 32. Rxa7 {[%emt 0:00:04]} Nxe3 {[%emt 0:00:03]} 33. c6 {[%emt 0:00:04]} Rc4 {[%emt 0:00:03]} 34. c7 {[%emt 0:00:01]} Rf8 {[%emt 0:00:00]} 35. Kh1 {[%emt 0:00:03]} Rc8 {[%emt 0:00:01]} 36. Bg1 R8xc7 37. Rxc7 {[%emt 0:00:02]} Rxc7 {[%emt 0:00:01]} 38. Bxe3 {[%emt 0:00:01]} fxe3 {[%emt 0:00:01]} 39. Rxe3 {[%emt 0:00:01]} Kg7 {[%emt 0:00:03]} 40. Kh2 {[%emt 0:00:03]} Kf6 {[%emt 0:00:01]} 41. g4 {[%emt 0:00:02]} Rc2+ {[%emt 0:00:02]} 42. Kg3 {[%emt 0:00:01]} Ra2 {[%emt 0:00:00]} 43. Rc3 {[%emt 0:00:01]} Rb2 {[%emt 0:00:03]} 44. h4 {[%emt 0:00:04]} h6 {[%emt 0:00:07]} 45. Rc6+ {[%emt 0:00:04]} Ke5 {[%emt 0:00:01]} 46. Rc3 {[%emt 0:00:03]} Kd4 {[%emt 0:00:06]} 47. Rf3 {[%emt 0:00:02]} Ke4 {[%emt 0:00:02]} 48. hxg5 hxg5 49. Rc3 {[%emt 0:00:08]} Kd4 {[%emt 0:00:01]} 50. Rf3 {[%emt 0:00:04]} Ke4 {[%emt 0:00:00]} 51. Rc3 {[%emt 0:00:14]} Kd4 {[%emt 0:00:01]} 52. Rc5 {[%emt 0:00:02]} Rb3+ {[%emt 0:00:01]} 53. Kg2 {[%emt 0:00:01]} Rxa3 {[%emt 0:00:06]} 54. Rxg5 {[%emt 0:00:01]} Rb3 {[%emt 0:00:06]} 55. b5 {[%emt 0:00:02]} Ke4 {[%emt 0:00:02]} 56. Rf5 {[%emt 0:00:01]} Rb1 {[%emt 0:00:03]} 57. Kg3 {[%emt 0:00:01]} Rg1+ {[%emt 0:00:01]} 58. Kh4 {[%emt 0:00:02]} Rb1 {[%emt 0:00:03]} 59. Kg5 {[%emt 0:00:02]} Rg1 {[%emt 0:00:02]} 60. Rc5 {[%emt 0:00:03]} Kd4 {[%emt 0:00:02]} 61. Rc6 {[%emt 0:00:02]} Rb1 {[%emt 0:00:01]} 62. b6 Kd5 63. Rf6 {[%emt 0:00:03]} Ke5 {[%emt 0:00:01]} 64. Rc6 {[%emt 0:00:02]} Kd5 {[%emt 0:00:00]} 65. Rh6 {[%emt 0:00:01]} Ke5 {[%emt 0:00:01]} 66. Rc6 {[%emt 0:00:05]} Kd5 {[%emt 0:00:00]} 67. Rh6 {[%emt 0:00:08]} Rb4 {[%emt 0:00:02]} 68. Kf5 {[%emt 0:00:03]} Rb1 {[%emt 0:00:02]} 69. g5 {[%emt 0:00:03]} Rf1+ {[%emt 0:00:02]} 70. Kg4 {[%emt 0:00:04]} Rg1+ {[%emt 0:00:03]} 71. Kh5 {[%emt 0:00:01]} Ke5 {[%emt 0:00:02]} 72. Rc6 {[%emt 0:00:03]} Rb1 {[%emt 0:00:05]} 73. Kh6 {[%emt 0:00:03]} Kf5 {[%emt 0:00:02]} 74. g6 {[%emt 0:00:02]} Rb2 {[%emt 0:00:03]} 75. Kh7 {[%emt 0:00:02]} Rh2+ {[%emt 0:00:01]} 76. Kg7 {[%emt 0:00:01]} Rb2 {[%emt 0:00:02]} 77. Kf7 {[%emt 0:00:01]} Rd2 {[%emt 0:00:03]} 78. g7 {[%emt 0:00:02]} Rd7+ {[%emt 0:00:01]} 79. Kf8 {[%emt 0:00:01]} Rd8+ {[%emt 0:00:01]} 80. Ke7 {[%emt 0:00:01]} Rb8 {[%emt 0:00:01]} 81. Kf7 {[%emt 0:00:04]} Rb7+ {[%emt 0:00:00]} 82. Kg8 {[%emt 0:00:01]} Kg5 {[%emt 0:00:04]} 83. Kh8 {[%emt 0:00:01]} 1-0

[Event "RUS-ch Blitz Women 2018"]
[Site "Sochi"]
[Date "2018.10.07"]
[Round "14"]
[White "Styazhkina, Anna"]
[Black "Maltsevskaya, Aleksandra"]
[Result "0-1"]
[ECO "B40"]
[WhiteElo "2268"]
[BlackElo "2290"]
[Annotator "NA"]
[PlyCount "102"]
[EventDate "2018.10.07"]
[EventType "swiss"]
[EventCountry "RUS"]
[SourceTitle "playchess.com"]
[Source "ChessBase"]
[SourceQuality "1"]
[TimeControl "180+2"]

1. e4 {[%emt 0:00:00]} c5 {[%emt 0:00:00]} 2. Nf3 {[%emt 0:00:01]} e6 {[%emt 0:00:01]} 3. c4 {[%emt 0:00:00]} Nc6 {[%emt 0:00:04]} 4. Nc3 {[%emt 0:00:02]} Nge7 {[%emt 0:00:04]} 5. d4 {[%emt 0:00:05]} cxd4 {[%emt 0:00:01]} 6. Nxd4 {[%emt 0:00:01]} Nxd4 {[%emt 0:00:00]} 7. Qxd4 {[%emt 0:00:02]} Nc6 {[%emt 0:00:01]} 8. Qd3 {[%emt 0:00:26]} Bc5 {[%emt 0:00:12]} 9. Be2 {[%emt 0:00:04]} O-O {[%emt 0:00:06]} 10. O-O {[%emt 0:00:02]} a6 {[%emt 0:00:01]} 11. Bf4 {[%emt 0:00:10]} e5 {[%emt 0:00:02]} 12. Be3 {[%emt 0:00:14]} Bxe3 {[%emt 0:00:05]} 13. fxe3 {[%emt 0:00:30]} d6 {[%emt 0:00:01]} 14. Rad1 {[%emt 0:00:08]} Qg5 {[%emt 0:00:04]} 15. Rf3 {[%emt 0:00:11]} Rd8 {[%emt 0:00:11]} 16. Rg3 {[%emt 0:00:12]} Qh6 {[%emt 0:00:01]} 17. Rf1 {[%emt 0:00:20]} Be6 {[%emt 0:00:01]} 18. b3 {[%emt 0:00:04]} Ne7 {[%emt 0:00:30]} 19. Bg4 {[%emt 0:00:07]} Bxg4 {[%emt 0:00:21]} 20. Rxg4 g6 21. Rg3 {[%emt 0:00:10]} Qg7 {[%emt 0:00:02]} 22. Rgf3 {[%emt 0:00:10]} f5 {[%emt 0:00:05]} 23. exf5 {[%emt 0:00:04]} Nxf5 {[%emt 0:00:01]} 24. Qd5+ {[%emt 0:00:07]} Kh8 {[%emt 0:00:01]} 25. e4 {[%emt 0:00:06]} Nd4 {[%emt 0:00:24]} 26. Rf7 {[%emt 0:00:05]} Qh6 {[%emt 0:00:01]} 27. Qxb7 {[%emt 0:00:09]} Rf8 {[%emt 0:00:04]} 28. Nd5 {[%emt 0:00:10]} Ne2+ {[%emt 0:00:12]} 29. Kf2 {[%emt 0:00:08]} Rxf7+ {[%emt 0:00:02]} 30. Qxf7 {[%emt 0:00:02]} Rf8 {[%emt 0:00:01]} 31. Kxe2 {[%emt 0:00:03]} Rxf7 {[%emt 0:00:01]} 32. Rxf7 {[%emt 0:00:02]} Kg8 {[%emt 0:00:09]} 33. Ra7 {[%emt 0:00:05]} Qxh2 {[%emt 0:00:03]} 34. Nf6+ {[%emt 0:00:02]} Kf8 {[%emt 0:00:00]} 35. Nxh7+ {[%emt 0:00:03]} Ke8 {[%emt 0:00:01]} 36. Nf6+ {[%emt 0:00:01]} Kd8 {[%emt 0:00:01]} 37. Rd7+ {[%emt 0:00:04]} Kc8 {[%emt 0:00:01]} 38. Rxd6 {[%emt 0:00:01]} Qxg2+ {[%emt 0:00:02]} 39. Ke3 {[%emt 0:00:03]} Qxa2 {[%emt 0:00:07]} 40. Nd5 {[%emt 0:00:02]} Qxb3+ {[%emt 0:00:02]} 41. Kf2 {[%emt 0:00:02]} Qc2+ {[%emt 0:00:03]} 42. Ke3 {[%emt 0:00:02]} g5 {[%emt 0:00:02]} 43. Rg6 {[%emt 0:00:02]} Qc1+ {[%emt 0:00:07]} 44. Kf3 {[%emt 0:00:03]} a5 {[%emt 0:00:04]} 45. Nb6+ {[%emt 0:00:02]} Kb7 {[%emt 0:00:02]} 46. Nd5 {[%emt 0:00:01]} a4 {[%emt 0:00:01]} 47. Rb6+ {[%emt 0:00:02]} Ka7 {[%emt 0:00:03]} 48. Rb4 {[%emt 0:00:01]} a3 {[%emt 0:00:03]} 49. Ra4+ {[%emt 0:00:02]} Kb7 {[%emt 0:00:01]} 50. Rb4+ {[%emt 0:00:01]} Kc6 {[%emt 0:00:01]} 51. Ra4 {[%emt 0:00:03]} Qd1+ {[%emt 0:00:04]} 0-1

[Event "RUS-ch Blitz Women 2018"]
[Site "Sochi"]
[Date "2018.10.07"]
[Round "14"]
[White "Nebolsina, Vera"]
[Black "Maletina, Tatiana"]
[Result "1/2-1/2"]
[ECO "C01"]
[WhiteElo "2220"]
[BlackElo "2270"]
[Annotator "ChessBase"]
[PlyCount "101"]
[EventDate "2018.10.07"]
[EventType "swiss"]
[EventCountry "RUS"]
[SourceTitle "playchess.com"]
[Source "ChessBase"]
[SourceQuality "1"]
[TimeControl "180+2"]

1. e4 {[%emt 0:00:00]} e6 {[%emt 0:00:00]} 2. d4 {[%emt 0:00:01]} d5 {[%emt 0:00:00]} 3. exd5 {[%emt 0:00:02]} exd5 {[%emt 0:00:00]} 4. Nf3 {[%emt 0:00:01]} Bd6 {[%emt 0:00:07]} 5. c4 {[%emt 0:00:14]} Nf6 {[%emt 0:00:15]} 6. Nc3 {[%emt 0:00:09]} O-O {[%emt 0:00:14]} 7. cxd5 {[%emt 0:00:49]} Re8+ {[%emt 0:00:02]} 8. Be2 {[%emt 0:00:01]} h6 {[%emt 0:00:16]} 9. O-O {[%emt 0:00:09]} Nbd7 {[%emt 0:00:01]} 10. Be3 {[%emt 0:00:24]} Nb6 {[%emt 0:00:02]} 11. Qb3 {[%emt 0:00:28]} Nfxd5 {[%emt 0:00:45]} 12. Nxd5 {[%emt 0:00:02]} Be6 {[%emt 0:00:01]} 13. Ne5 {[%emt 0:00:32]} Bxd5 {[%emt 0:00:04]} 14. Qc3 {[%emt 0:00:01]} c6 {[%emt 0:00:11]} 15. Bf3 {[%emt 0:00:05]} Bxe5 {[%emt 0:00:01]} 16. dxe5 {[%emt 0:00:03]} Bxf3 {[%emt 0:00:02]} 17. gxf3 {[%emt 0:00:02]} Nd5 {[%emt 0:00:01]} 18. Qd4 {[%emt 0:00:02]} Qe7 {[%emt 0:00:06]} 19. f4 {[%emt 0:00:02]} Qh4 {[%emt 0:00:01]} 20. Qe4 {[%emt 0:00:05]} Re6 {[%emt 0:00:07]} 21. Kh1 {[%emt 0:00:01]} Rae8 {[%emt 0:00:10]} 22. Rg1 {[%emt 0:00:01]} Qh5 {[%emt 0:00:23]} 23. Rg3 {[%emt 0:00:05]} g6 {[%emt 0:00:29]} 24. Rag1 {[%emt 0:00:03]} Ne7 {[%emt 0:00:01]} 25. Qg2 {[%emt 0:00:10]} Nf5 {[%emt 0:00:05]} 26. Rh3 {[%emt 0:00:01]} Qe2 {[%emt 0:00:01]} 27. Bxa7 {[%emt 0:00:06]} Kh7 {[%emt 0:00:07]} 28. Rb3 {[%emt 0:00:03]} b5 {[%emt 0:00:02]} 29. Qf3 {[%emt 0:00:06]} Qc2 {[%emt 0:00:07]} 30. Rc3 {[%emt 0:00:03]} Qxb2 {[%emt 0:00:03]} 31. Rxc6 {[%emt 0:00:01]} Qxa2 {[%emt 0:00:05]} 32. Rc7 {[%emt 0:00:02]} R6e7 {[%emt 0:00:04]} 33. Rxe7 {[%emt 0:00:04]} Rxe7 {[%emt 0:00:01]} 34. Bc5 {[%emt 0:00:01]} Rd7 {[%emt 0:00:03]} 35. Qc6 {[%emt 0:00:04]} Qd5+ {[%emt 0:00:04]} 36. Qxd5 {[%emt 0:00:02]} Rxd5 {[%emt 0:00:01]} 37. Be3 {[%emt 0:00:02]} b4 {[%emt 0:00:06]} 38. Rb1 {[%emt 0:00:01]} Rb5 {[%emt 0:00:00]} 39. Rb3 {[%emt 0:00:01]} Ne7 {[%emt 0:00:04]} 40. Kg2 {[%emt 0:00:03]} Kg7 {[%emt 0:00:03]} 41. Kf3 {[%emt 0:00:01]} f5 {[%emt 0:00:01]} 42. Ke2 {[%emt 0:00:05]} Kf7 {[%emt 0:00:02]} 43. Kd3 {[%emt 0:00:01]} Nc6 {[%emt 0:00:03]} 44. Bd2 {[%emt 0:00:03]} Rd5+ {[%emt 0:00:02]} 45. Ke3 {[%emt 0:00:02]} Ke6 {[%emt 0:00:04]} 46. Rd3 {[%emt 0:00:04]} Ne7 {[%emt 0:00:02]} 47. Bxb4 {[%emt 0:00:01]} Rxd3+ {[%emt 0:00:02]} 48. Kxd3 {[%emt 0:00:01]} Nd5 {[%emt 0:00:00]} 49. Bd2 {[%emt 0:00:01]} Nc7 {[%emt 0:00:02]} 50. Kd4 {[%emt 0:00:02]} Nd5 {[%emt 0:00:01]} 51. Be3 {[%emt 0:00:02] Kxe5+ Ke4+} 1/2-1/2